bitfinex-derivatives/quotes_SOLF0:USTF0_20240910
["timestamp","ask_amount","ask_price","bid_price","bid_amount"]
[1725967019939,3.6995,135.15,135.13,3.6999]
[1725967020843,9.1,135.17,135.12,12.8]
[1725967022147,3.6998,135.14,135.12,12.8]
[1725967022539,9.1,135.16,135.04,11.06566375]
[1725967022751,3.7001,135.13,135.09,9.1]
[1725967023053,3.7001,135.13,135.11,3.7004]
[1725967023647,3.6998,135.14,135.11,3.7004]
[1725967023948,1.3542,135.15,135.12,3.7]
[1725967024148,1.3542,135.15,135.12,9.1]
[1725967024340,1.3542,135.15,135.14,3.6996]
[1725967024543,16.97008628,135.25,135.14,9.1]
[1725967024742,3.6981,135.2,135.17,3.6987]
[1725967025842,4.0316,135.24,135.16,9.1]
[1725967026050,9.1,135.23,135.16,9.1]
[1725967026445,3.6984,135.19,135.16,12.7989]
[1725967027253,3.6986,135.18,135.15,12.7992]
[1725967028655,9.1,135.18,135.12,2.6248]
[1725967028856,9.1,135.18,135.12,11.7248]
[1725967029156,9.1,135.18,135.13,3.6998]
[1725967029157,3.6993,135.16,135.13,3.6998]
[1725967029749,3.6994,135.15,135.13,3.6998]
[1725967032553,3.6994,135.15,135.12,12.8001]
[1725967032755,3.6996,135.14,135.12,12.8001]
[1725967033755,3.6995,135.15,135.12,12.8001]
[1725967035261,3.6995,135.15,135.13,3.6999]
[1725967039259,3.6995,135.15,135.12,12.8]
[1725967039469,10.4833,135.17,135.11,9.1]
[1725967039470,9.1,135.16,135.11,9.1]
[1725967040465,3.6996,135.14,135.12,3.7001]
[1725967040972,1.3833,135.17,135.12,12.74165223]
[1725967041163,3.6994,135.15,135.12,9.1]
[1725967041959,3.6994,135.15,135.12,12.8]
[1725967042767,1.3833,135.17,135.12,9.1]
[1725967043166,3.6991,135.16,135.12,9.1]
[1725967043471,1.2922,135.19,135.15,9.1]
[1725967043772,3.6987,135.18,135.15,12.7992]
[1725967043964,3.6987,135.18,135.15,3.6992]
[1725967044363,3.6987,135.18,135.15,12.7992]
[1725967045972,3.6984,135.19,135.16,3.6989]
[1725967047066,3.6986,135.18,135.15,12.7992]
[1725967049277,3.699,135.17,135.15,9.1]
[1725967049772,3.6986,135.18,135.15,12.7992]
[1725967049971,3.6986,135.18,135.15,9.1]
[1725967050171,3.6986,135.18,135.15,12.7992]
[1725967051474,3.6984,135.19,135.16,12.799]
[1725967051973,1.2803,135.2,135.16,12.799]
[1725967052169,3.6987,135.18,135.16,9.1]
[1725967054386,3.6987,135.18,135.16,12.7991]
[1725967054879,3.6987,135.18,135.16,9.1]
[1725967055472,3.6987,135.18,135.15,12.7992]
[1725967055677,3.6989,135.17,135.15,12.7992]
[1725967059780,3.6989,135.17,135.15,9.1]
[1725967060282,3.6989,135.17,135.15,12.7993]
[1725967063270,3.6989,135.17,135.15,9.1]
[1725967063582,3.6991,135.16,135.14,3.6995]
[1725967063782,3.6991,135.16,135.14,12.7995]
[1725967064881,9.1,135.19,135.12,11.8239]
[1725967065277,3.6993,135.16,135.14,3.6996]
[1725967065482,3.6993,135.16,135.14,12.7996]
[1725967065880,3.6994,135.15,135.13,3.6998]
[1725967066075,3.6994,135.15,135.13,12.7998]
[1725967067381,3.6994,135.15,135.13,9.1]
[1725967068775,9.1,135.19,135.13,9.1]
[1725967068981,9.1,135.18,135.13,9.1]
[1725967069392,3.6995,135.15,135.13,9.1]
[1725967069587,9.1,135.18,135.13,9.1]
[1725967070782,3.6995,135.15,135.13,9.1]
[1725967071589,3.6996,135.14,135.13,9.1]
[1725967071785,9.1,135.18,135.13,9.1]
[1725967072191,3.6995,135.15,135.13,9.1]
[1725967072390,3.6995,135.15,135.13,12.7999]
[1725967073794,3.6995,135.15,135.13,9.1]
[1725967074992,3.6995,135.15,135.12,3.7001]
[1725967075291,3.6995,135.15,135.12,12.8001]
[1725967075891,9.1,135.18,135.12,9.1]
[1725967076996,3.6995,135.15,135.12,12.8002]
[1725967077890,3.6995,135.15,135.12,3.7002]
[1725967078098,3.6995,135.15,135.12,12.8002]
[1725967078594,3.6995,135.15,135.06,2.5839]
[1725967078595,9.1,135.16,135.06,2.5839]
[1725967078788,1.3168,135.15,135.1,9.1]
[1725967078988,3.7005,135.11,135.1,9.1]
[1725967079498,3.63488303,135.14,135.1,9.1]
[1725967079692,3.7004,135.12,135.1,9.1]
[1725967079897,10.4168,135.15,135.1,9.1]
[1725967080288,3.7001,135.13,135.1,12.8005]
[1725967080489,1.3168,135.15,135.11,9.1]
[1725967080999,3.6998,135.14,135.11,12.8003]
[1725967081398,3.6998,135.14,135.12,9.1]
[1725967083901,3.6998,135.14,135.12,12.8002]
[1725967085295,3.6998,135.14,135.12,9.1]
[1725967085691,3.6999,135.13,135.11,3.7003]
[1725967085896,3.6999,135.13,135.11,12.8003]
[1725967089206,3.6999,135.13,135.11,9.1]
[1725967089906,3.6999,135.13,135.11,12.8003]
[1725967090707,3.6999,135.13,135.11,9.1]
[1725967091904,3.6999,135.13,135.11,12.8003]
[1725967092404,1.3168,135.15,135.12,3.7]
[1725967092604,1.3168,135.15,135.12,12.8]
[1725967093311,9.1,135.18,135.12,9.1]
[1725967093904,3.6993,135.16,135.13,3.6998]
[1725967094304,9.1,135.18,135.13,3.6998]
[1725967095111,3.6994,135.15,135.13,3.6998]
[1725967095805,1.337,135.19,135.14,3.6996]
[1725967095806,3.699,135.17,135.14,3.6996]
[1725967096106,10.437,135.19,135.06,2.5839]
[1725967096107,1.337,135.19,135.06,2.5839]
[1725967096317,9.1,135.18,135.12,9.1]
[1725967097014,3.6995,135.15,135.12,12.8]
[1725967097712,3.6995,135.15,135.13,3.6999]
[1725967098709,3.6992,135.16,135.13,3.6999]
[1725967098906,3.6992,135.16,135.14,3.6996]
[1725967100113,3.699,135.17,135.14,12.7996]
[1725967101110,3.699,135.17,135.15,3.6993]
[1725967101304,3.699,135.17,135.14,9.1]
[1725967101706,3.6987,135.18,135.15,3.6994]
[1725967102011,1.337,135.19,135.15,3.6994]
[1725967102605,3.6989,135.17,135.15,3.6994]
[1725967102814,3.6989,135.17,135.14,12.7995]
[1725967104905,3.6989,135.17,135.15,12.7993]
[1725967106619,3.6987,135.18,135.15,12.7993]
[1725967107519,3.6989,135.17,135.15,12.7993]
[1725967107909,3.6989,135.17,135.15,9.1]
[1725967109322,3.6991,135.16,135.15,9.1]
[1725967110923,3.6989,135.17,135.15,9.1]
[1725967111515,3.6989,135.17,135.15,12.7993]
[1725967112514,20.71255431,135.21,135.16,3.6989]
[1725967112822,12.84407933,135.21,135.16,3.6989]
[1725967113025,3.6987,135.18,135.15,12.7992]
[1725967115734,3.6984,135.19,135.16,3.6989]
[1725967116033,3.6984,135.19,135.16,9.1]
[1725967116427,152.00237639,135.22,135.18,9.1]
[1725967116832,3.6978,135.21,135.18,12.7984]
[1725967120235,3.6978,135.21,135.18,3.6984]
[1725967120537,3.6978,135.21,135.18,12.7984]
[1725967121332,2.5904,135.24,135.2,3.698]
[1725967121537,2.5904,135.24,135.21,9.1]
[1725967121933,1.2838,135.24,135.21,9.1]
[1725967122340,3.6973,135.23,135.21,9.1]
[1725967122535,1.2838,135.24,135.21,9.1]
[1725967122839,3.6974,135.22,135.21,9.1]
[1725967123841,3.6977,135.21,135.19,9.1]
[1725967126040,3.6977,135.21,135.19,12.7982]
[1725967127542,1.2838,135.24,135.2,3.6978]
[1725967128136,3.6973,135.23,135.2,3.6978]
[1725967128539,1.2838,135.24,135.2,3.6978]
[1725967128741,3.6976,135.22,135.2,3.6978]
[1725967131144,3.6976,135.22,135.19,9.1]
[1725967131145,1.2838,135.24,135.19,12.7982]
[1725967131843,3.6976,135.22,135.19,12.7982]
[1725967132049,3.6976,135.22,135.2,3.6979]
[1725967133341,3.6978,135.21,135.19,3.6981]
[1725967133547,3.6978,135.21,135.18,9.1]
[1725967134447,3.6978,135.21,135.19,3.6981]
[1725967134949,3.6975,135.22,135.18,9.1]
[1725967135141,3.6975,135.22,135.2,9.1]
[1725967136144,3.6975,135.22,135.2,12.7979]
[1725967138043,3.6973,135.23,135.2,12.7979]
[1725967140954,3.6975,135.22,135.2,12.7979]
[1725967143163,3.6975,135.22,135.19,3.6981]
[1725967143351,3.6975,135.22,135.2,9.1]
[1725967144056,3.6975,135.22,135.2,12.798]
[1725967144358,3.6975,135.22,135.2,9.1]
[1725967145856,3.6975,135.22,135.2,12.798]
[1725967148553,10.3838,135.24,135.2,9.1]
[1725967150157,3.6976,135.22,135.2,9.1]
[1725967151657,3.6977,135.21,135.2,9.1]
[1725967152462,3.6977,135.21,135.18,3.6984]
[1725967152663,3.6977,135.21,135.19,9.1]
[1725967153063,3.6977,135.21,135.19,12.7982]
[1725967154054,3.698,135.2,135.18,3.6984]
[1725967154260,10.3838,135.24,135.18,9.1]
[1725967155061,3.6978,135.21,135.19,3.6982]
[1725967156158,3.6976,135.22,135.19,3.6982]
[1725967156566,10.3838,135.24,135.18,3.6984]
[1725967156762,10.3838,135.24,135.19,9.1]
[1725967158065,3.6978,135.21,135.19,9.1]
[1725967158660,10.3838,135.24,135.19,9.1]
[1725967159269,3.698,135.2,135.19,9.1]
[1725967160772,3.698,135.2,135.17,12.7987]
[1725967161871,3.698,135.2,135.17,3.6987]
[1725967162065,3.698,135.2,135.17,12.7987]
[1725967164968,3.6985,135.18,135.04,33.02861995]
[1725967165167,3.6985,135.18,135.16,9.1]
[1725967165565,3.6985,135.18,135.15,12.7992]
[1725967166773,3.6985,135.18,135.16,3.6991]
[1725967171071,3.6989,135.17,135.15,12.7992]
[1725967178176,3.6989,135.17,135.15,3.6992]
[1725967179483,3.6989,135.17,135.14,12.7995]
[1725967180586,3.6991,135.16,135.14,12.7995]
[1725967180877,3.6991,135.16,135.14,3.6995]
[1725967183073,3.699,135.17,135.14,3.6995]
[1725967183386,3.699,135.17,135.14,12.7995]
[1725967183781,3.6991,135.16,135.14,12.7995]
[1725967187185,1.2817,135.2,135.15,9.1]
[1725967187892,3.6986,135.18,135.16,3.6989]
[1725967189483,3.6986,135.18,135.15,12.7993]
[1725967190280,3.6989,135.17,135.14,12.7996]
[1725967192090,3.6991,135.16,135.14,12.7996]
[1725967192679,3.6991,135.16,135.14,3.6996]
[1725967193294,3.6991,135.16,135.13,12.7998]
[1725967194786,3.6994,135.15,135.13,12.7998]
[1725967195685,3.6994,135.15,135.13,3.6998]
[1725967196985,9.1,135.16,135.05,7.4038]
[1725967197186,9.1,135.14,135.09,9.1]
[1725967197590,3.7,135.13,135.1,3.7006]
[1725967198888,3.7,135.13,135.1,3.66798952]
[1725967203090,3.7,135.13,135.1,12.76798952]
[1725967203989,3.7,135.13,135.11,3.7004]
[1725967205291,3.6997,135.14,135.11,3.7004]
[1725967207608,3.7,135.13,135.1,12.8006]
[1725967208198,3.7,135.13,135.1,3.7006]
[1725967208397,3.7,135.13,135.11,3.7004]
[1725967211803,9.1,135.13,135.07,3.7015]
[1725967212002,9.1,135.13,135.06,2.7271]
[1725967212200,9.1,135.13,135.07,9.1]
[1725967212505,3.7006,135.11,135.07,9.1]
[1725967212802,3.7006,135.11,135.06,2.7271]
[1725967213002,3.7006,135.11,135.08,9.1]
[1725967214109,3.7006,135.11,135.09,3.701]
[1725967215300,3.7006,135.11,135.08,12.8012]
[1725967215711,3.7003,135.12,135.08,9.1]
[1725967216911,3.7003,135.12,135.09,3.7008]
[1725967218510,3.7005,135.11,135.09,3.7008]
[1725967219409,3.7008,135.1,135.08,3.7012]
[1725967220208,3.7006,135.11,135.08,3.7012]
[1725967221115,3.7006,135.11,135.09,3.701]
[1725967221410,3.7004,135.12,135.08,9.1]
[1725967221814,3.7004,135.12,135.09,3.7008]
[1725967224914,3.7005,135.11,135.09,3.7008]
[1725967225130,3.7005,135.11,135.08,12.8012]
[1725967225916,3.7005,135.11,135.09,3.7009]
[1725967231821,3.7003,135.12,135.09,3.7009]
[1725967234119,3.7006,135.11,135.09,3.7009]
[1725967234320,3.7006,135.11,135.08,3.7012]
[1725967234720,9.1,135.13,135.08,3.7012]
[1725967236219,9.1,135.12,135.08,3.7012]
[1725967236428,10.4429,135.12,135.08,3.7012]
[1725967237715,3.7005,135.11,135.08,3.7012]
[1725967238319,3.7007,135.1,135.08,3.7012]
[1725967239028,10.4429,135.12,134.97,7.4083]
[1725967239029,9.1,135.09,134.97,7.4083]
[1725967239230,9.1,135.06,134.98,7.53413329]
[1725967239419,1.3429,135.12,134.99,6.13283329]
[1725967239420,3.703,135.02,134.99,6.13283329]
[1725967239729,9.1,135.05,135.0,6.13283329]
[1725967239924,9.1,135.05,134.99,9.1]
[1725967240522,9.1,135.05,134.96,4.97835701]
[1725967240523,9.1,135.05,135.0,9.1]
[1725967241028,3.7029,135.03,135.0,12.8033]
[1725967242325,9.1,135.05,135.0,9.1]
[1725967242326,3.7031,135.02,135.0,9.1]
[1725967242521,9.1,135.05,135.0,9.1]
[1725967244224,3.7027,135.03,135.01,3.7032]
[1725967244625,3.7024,135.04,135.01,3.7032]
[1725967244824,10.3753,135.06,135.0,9.1]
[1725967245023,1.2753,135.06,135.01,9.1]
[1725967245432,3.7022,135.05,135.02,3.7027]
[1725967245933,1.2753,135.06,134.96,4.97835701]
[1725967245934,4.9772,135.06,135.03,9.1]
[1725967246225,3.7019,135.06,135.03,9.1]
[1725967247127,3.7019,135.06,135.03,12.8025]
[1725967250529,3.7022,135.05,135.02,3.7028]
[1725967251123,9.1,135.06,134.99,1.3011]
[1725967251529,9.1,135.05,134.99,10.4011]
[1725967251836,3.7029,135.02,135.0,3.7035]
[1725967252134,9.1,135.05,135.0,3.7035]
[1725967252323,3.7028,135.03,135.0,3.7035]
[1725967253831,9.1,135.05,135.0,3.7035]
[1725967254036,3.7031,135.02,134.99,1.3011]
[1725967255136,3.7031,135.02,135.0,3.7034]
[1725967257033,3.7028,135.03,135.0,3.7034]
[1725967259936,3.7028,135.03,135.01,12.8031]
[1725967260241,3.7024,135.04,135.01,9.1]
[1725967260442,3.7024,135.04,135.01,12.8031]
[1725967260739,3.7023,135.05,135.02,9.1]
[1725967261138,3.7023,135.05,135.03,3.7025]
[1725967261843,3.7019,135.06,135.03,3.7025]
[1725967262438,3.7019,135.06,135.03,12.8025]
[1725967262938,3.7019,135.06,135.04,3.7023]
[1725967264135,3.7019,135.06,135.03,12.8025]
[1725967265138,3.7019,135.06,135.04,3.7023]
[1725967268048,10.463,135.09,135.04,9.1]
[1725967268539,3.7018,135.07,135.04,12.8022]
[1725967269348,3.7018,135.07,135.05,3.7021]
[1725967272248,3.7018,135.07,135.04,12.8022]
[1725967274250,3.7018,135.07,135.04,12.8022]
[1725967274642,3.7018,135.07,135.04,3.7022]
[1725967274954,3.7019,135.06,135.04,3.7022]
[1725967275951,10.463,135.09,135.03,16.4832453]
[1725967276948,9.1,135.07,135.03,3.7026]
[1725967277746,9.1,135.06,135.01,1.3659]
[1725967277943,9.1,135.06,134.99,1.3011]
[1725967278147,3.7029,135.03,135.0,9.82827861]
[1725967278347,3.7029,135.03,135.0,3.7033]
[1725967278549,9.1,135.06,135.0,3.7033]
[1725967279254,3.7028,135.03,135.0,3.7033]
[1725967282244,3.7028,135.03,135.0,12.8033]
[1725967284058,3.7028,135.03,135.01,3.7032]
[1725967287553,9.1,135.07,135.01,9.1]
[1725967287753,1.3617,135.08,135.02,9.1]
[1725967288253,9.1,135.07,135.02,12.8027]
[1725967288646,9.1,135.07,135.02,3.7027]
[1725967288845,12.73377046,135.06,135.01,3.7031]
[1725967289251,9.1,135.07,135.02,3.7028]
[1725967289448,9.1,135.07,135.03,9.1]
[1725967289762,3.702,135.06,135.03,12.8025]
[1725967290171,1.3617,135.08,135.03,12.8025]
[1725967290351,1.363,135.09,135.05,9.1]
[1725967290750,1.363,135.09,135.05,12.802]
[1725967291455,3.7015,135.08,135.05,12.802]
[1725967291656,1.363,135.09,135.05,12.802]
[1725967291857,1.363,135.09,135.03,3.62821367]
[1725967291858,1.363,135.09,135.04,12.8023]
[1725967292957,3.7018,135.07,135.04,12.8023]
[1725967293157,1.363,135.09,135.03,3.7025]
[1725967293359,1.363,135.09,135.04,9.1]
[1725967293560,10.463,135.09,135.04,9.1]
[1725967293753,3.7018,135.07,135.04,9.1]
[1725967294959,3.7018,135.07,135.04,12.8024]
[1725967295953,3.7019,135.06,135.04,12.8024]
[1725967296159,3.7019,135.06,135.04,9.1]
[1725967297464,3.7019,135.06,135.04,12.8024]
[1725967299157,3.7019,135.06,135.04,9.1]
[1725967300166,3.7019,135.06,135.04,12.8024]
[1725967303066,10.463,135.09,135.03,3.7026]
[1725967303265,10.463,135.09,135.04,9.1]
[1725967303464,1.363,135.09,135.04,9.1]
[1725967303665,1.363,135.09,135.05,9.1]
[1725967304166,5.0642,135.09,135.06,3.7017]
[1725967304368,1.4062,135.12,135.08,9.1]
[1725967304568,1.4062,135.12,135.04,2.5969]
[1725967304569,10.5062,135.12,135.04,2.5969]
[1725967304768,10.5062,135.12,135.05,9.1]
[1725967304964,3.7015,135.08,135.05,12.8021]
[1725967305268,9.1,135.11,135.05,9.1]
[1725967307057,3.7014,135.08,135.05,12.8021]
[1725967307262,9.1,135.11,135.04,11.6969]
[1725967307463,9.1,135.11,135.04,9.1]
[1725967307769,3.7016,135.07,135.04,12.8022]
[1725967309267,1.4062,135.12,134.99,2.6564]
[1725967309268,3.7021,135.05,135.01,9.1]
[1725967309669,3.7025,135.04,135.01,9.1]
[1725967310260,1.3302,135.07,135.01,9.1]
[1725967310463,9.1,135.06,135.01,9.1]
[1725967310668,9.1,135.06,135.0,9.1]
[1725967310865,3.7025,135.04,135.01,3.703]
[1725967311265,3.7027,135.03,135.01,3.703]
[1725967311462,2.6612,135.07,135.02,12.8029]
[1725967311667,2.6612,135.07,135.02,9.1]
[1725967311867,3.7022,135.05,135.02,9.1]
[1725967312173,2.6612,135.07,135.03,3.7025]
[1725967312476,3.702,135.06,135.03,3.7025]
[1725967313170,3.7021,135.05,135.03,3.7025]
[1725967315279,3.7021,135.05,135.02,12.8029]
[1725967316173,3.7021,135.05,135.03,3.7026]
[1725967316376,3.7021,135.05,135.02,9.1]
[1725967316677,3.7021,135.05,135.02,12.8027]
[1725967317980,3.7021,135.05,135.03,3.7026]
[1725967319477,3.7024,135.04,135.02,12.8028]
[1725967320189,3.7024,135.04,135.02,9.1]
[1725967320772,3.7026,135.03,135.01,3.703]
[1725967321680,3.7025,135.04,135.01,3.703]
[1725967322083,3.7025,135.04,135.02,3.7029]
[1725967322474,9.1,135.06,135.02,9.1]
[1725967322983,3.7024,135.05,135.02,12.8028]
[1725967324088,3.7024,135.05,135.03,3.7026]
[1725967325278,3.7023,135.05,135.02,12.8028]
[1725967327483,9.1,135.06,135.02,9.1]
[1725967327697,9.1,135.06,135.01,3.7031]
[1725967328178,3.7025,135.04,135.01,3.7031]
[1725967332993,3.7025,135.04,135.02,3.7029]
[1725967335698,3.7025,135.04,135.01,12.8031]
[1725967336791,3.7025,135.04,135.02,3.7029]
[1725967337690,3.7023,135.05,135.03,3.7026]
[1725967337893,3.7023,135.05,135.01,9.1]
[1725967338797,3.7025,135.04,135.01,9.1]
[1725967339195,3.7025,135.04,135.01,12.8031]
[1725967339396,3.7025,135.04,135.01,9.1]
[1725967340093,3.7025,135.04,135.02,3.7029]
[1725967349299,3.7022,135.05,135.01,9.1]
[1725967349898,3.7022,135.05,135.02,3.7028]
[1725967351602,10.4302,135.07,135.02,3.7028]
[1725967351803,3.7024,135.04,135.02,3.7028]
[1725967352398,10.4302,135.07,135.01,9.1]
[1725967352603,10.4302,135.07,135.01,12.8031]
[1725967353505,3.7025,135.04,135.01,12.8031]
[1725967358517,9.1,135.06,135.0,3.7033]
[1725967358813,9.1,135.05,135.0,3.7033]
[1725967359206,3.7028,135.03,135.0,3.7033]
[1725967360511,3.7028,135.03,135.01,3.7032]
[1725967368820,3.7029,135.02,135.0,3.7034]
[1725967371427,158.5988123,135.07,135.01,3.7032]
[1725967371628,9.1,135.06,135.01,3.7032]
[1725967372933,9.1,135.06,135.02,3.7029]
[1725967373227,163.97724455,135.07,135.02,3.7029]
[1725967373423,3.7023,135.05,135.02,12.8029]
[1725967373628,3.7023,135.05,135.03,3.7026]
[1725967373823,3.7023,135.05,135.02,9.1]
[1725967374124,153.47634455,135.07,135.02,9.1]
[1725967375022,3.7022,135.05,135.02,12.8028]
[1725967379126,3.7022,135.05,135.02,3.7028]
[1725967379926,3.7025,135.04,135.01,12.8031]
[1725967380629,3.7025,135.04,135.01,3.7031]
[1725967380835,3.7027,135.03,135.01,3.7031]
[1725967381220,3.7027,135.03,135.0,9.1]
[1725967381221,3.703,135.02,135.0,3.7033]
[1725967383227,9.1,135.03,134.97,2.6231]
[1725967383431,9.1,135.02,134.96,12.74605701]
[1725967383736,9.1,135.02,134.96,9.1]
[1725967384127,3.7036,135.0,134.97,3.7041]
[1725967390338,3.7036,135.0,134.98,3.704]
[1725967394434,3.7033,135.01,134.99,3.7037]
[1725967394741,1.3297,135.03,134.98,9.1]
[1725967395251,5.0324,135.03,135.0,3.7033]
[1725967395441,5.0324,135.03,135.0,9.1]
[1725967396238,1.3297,135.03,135.01,3.703]
[1725967396632,3.7025,135.04,135.01,9.1]
[1725967396836,3.7023,135.05,135.02,3.7028]
[1725967397036,163.86924455,135.07,135.02,9.1]
[1725967397438,3.7021,135.05,135.03,3.7025]
[1725967397842,3.7021,135.05,135.02,9.1]
[1725967398046,3.7021,135.05,135.02,12.8028]
[1725967403651,3.7025,135.04,135.01,3.7031]
[1725967403851,9.1,135.06,135.01,3.7031]
[1725967404153,9.1,135.06,135.0,12.8033]
[1725967404356,9.1,135.05,135.0,3.7033]
[1725967405254,3.7029,135.03,135.0,3.7033]
[1725967410146,3.7033,135.01,134.97,2.6845]
[1725967410350,9.1,135.02,134.91,7.4117]
[1725967410650,3.7037,135.0,134.97,12.8042]
[1725967412055,3.7033,135.01,134.98,12.804]
[1725967416457,4.9962,135.02,134.99,12.8037]
[1725967416652,4.9962,135.02,134.99,9.1]
[1725967418159,4.9962,135.02,135.0,3.7034]
[1725967426262,3.7028,135.03,135.0,3.7034]
[1725967427766,3.7029,135.02,135.0,3.7034]
[1725967430264,9.1,135.05,134.99,12.8036]
[1725967430864,3.7031,135.02,134.99,12.8036]
[1725967432166,3.7033,135.01,134.99,12.8036]
[1725967434167,9.1,135.05,134.99,9.1]
[1725967434470,9.1,135.03,134.98,3.7039]
[1725967434969,3.7036,135.0,134.98,3.7039]
[1725967436470,3.7038,134.99,134.96,2.7002]
[1725967436672,3.7038,134.99,134.96,9.1]
[1725967436970,3.7039,134.99,134.96,12.8044]
[1725967437161,9.1,135.01,134.96,12.8044]
[1725967439059,3.7039,134.99,134.96,12.8044]
[1725967440272,3.7037,135.0,134.97,9.1]
[1725967441973,3.7037,135.0,134.98,3.704]
[1725967444571,1.2901,135.02,134.98,9.1]
[1725967445172,3.7033,135.01,134.98,3.704]
[1725967445474,3.7033,135.01,134.98,12.804]
[1725967446677,3.7033,135.01,134.99,3.7037]
[1725967446979,4.9932,135.02,134.99,3.7037]
[1725967447384,4.9932,135.02,134.99,12.8037]
[1725967447579,1.2901,135.02,134.99,9.1]
[1725967447880,3.7027,135.03,135.0,12.8033]
[1725967451279,3.7027,135.03,135.0,3.7033]
[1725967451677,3.703,135.02,135.0,3.7033]
[1725967452283,3.703,135.02,134.99,3.7036]
[1725967452878,9.1,135.03,134.99,3.7036]
[1725967453083,9.1,135.03,134.98,12.8039]
[1725967453380,3.7032,135.01,134.98,12.8039]
[1725967454687,3.7032,135.01,134.99,3.7037]
[1725967456385,3.7039,134.99,134.9,7.4123]
[1725967456589,9.1,135.01,134.96,9.1]
[1725967456881,3.7033,135.01,134.98,3.704]
[1725967457282,3.7033,135.01,134.97,9.1]
[1725967457475,3.7033,135.01,134.98,3.704]
[1725967460091,3.7035,135.0,134.98,3.704]
[1725967460690,9.1,135.02,134.96,9.1]
[1725967461487,3.7036,135.0,134.97,3.7041]
[1725967461684,3.7036,135.0,134.97,9.1]
[1725967462393,3.7036,135.0,134.98,3.7039]
[1725967463691,9.1,135.0,134.94,9.1]
[1725967464693,3.7042,134.98,134.94,9.1]
[1725967465095,3.7042,134.98,134.95,3.7047]
[1725967465600,3.7043,134.97,134.95,3.7047]
[1725967465793,1.3702,135.01,134.93,9.1]
[1725967465794,9.1,134.99,134.93,9.1]
[1725967466296,3.7047,134.96,134.93,12.8053]
[1725967466685,3.7047,134.96,134.94,3.7051]
[1725967467095,3.705,134.95,134.91,2.6787]
[1725967467396,9.1,134.97,134.88,3.64605701]
[1725967467599,9.1,134.97,134.91,9.1]
[1725967467998,2.7233,135.0,134.91,9.1]
[1725967468200,9.1,134.98,134.93,9.1]
[1725967468495,9.1,134.98,134.94,3.7051]
[1725967469199,3.7043,134.97,134.94,3.7051]
[1725967469392,9.1,134.98,134.94,3.7051]
[1725967470095,3.7043,134.97,134.94,9.1]
[1725967470491,3.7043,134.97,134.94,12.805]
[1725967488809,15.50667163,135.0,134.93,3.7053]
[1725967489107,9.1,134.99,134.93,9.1]
[1725967489702,9.1,134.99,134.94,3.7051]
[1725967490205,3.7045,134.97,134.94,3.7051]
[1725967503622,3.7047,134.96,134.93,12.8053]
[1725967504126,3.7047,134.96,134.94,3.705]
[1725967505923,3.7049,134.95,134.93,3.7052]